{"text_format":"3","workbook":"xlsx","n_sheets":46,"sheets":["Mechanics","Index","Intro","How it works","Suspects","Elimination Grid","Treats","Puzzle1A","Puzzle1B","Puzzle2","Puzzle3","Puzzle4A","Puzzle4B","Puzzle5","Puzzle6","Puzzle7A","Puzzle7B","Puzzle8","Puzzle9","Puzzle10","Puzzle11","Puzzle12A","Puzzle12B","Puzzle12C","Sweepstake","Accusation","Confession","Solutions","PuzzleBonus","Other Games","Suspects_Reset","Elimination Grid_Reset","Treats_Reset","Puzzle1B_Reset","Puzzle2_Reset","Puzzle4B_Reset","Puzzle5_Reset","Puzzle7B_Reset","Puzzle8_Reset","Puzzle11_Reset","Puzzle12A_Reset","Puzzle12B_Reset","Puzzle12C_Reset","Sweepstake_Reset","Confession_Reset","PuzzleBonus_Reset"],"not_rendered":{"images":15,"macros":1,"defined_names":3},"read":"whole","date_system":"1900"}

{"sheet":"Mechanics","index":0,"n_rows":28,"n_cols":6,"rows_kept":28,"hidden":true}
["Treats",{"$nulls":3},"Bunny Dropdown List","Intros"]
["PLAYER ANSWER","ACTUAL ANSWER","SAME?",null,"HANS","Hello there.  I am Hans, the inventor bunny.  I love to experiment and make wild and wacky inventions out of everyday objects.  I am never happier than when surrounded by cogs, bolts, washing up liquid bottles and batteries! I am very intelligent, and my favourite places are libraries and museums, where I can gain even more knowledge.  Unfortunately I am subject to brainstorm disease.  I had a severe episode of it recently, but fortunately Hezekiah made me a medicine that cured me."]
[{"$f":"UPPER(SUBSTITUTE(SUBSTITUTE(SUBSTITUTE(Treats!C6,\" \",\"\"),\".\",\"\"),\",\",\"\"))","v":""},"SWITZERLAND",{"$f":"A3=B3","v":false},null,"MILOS","Guten Tag.  Shalom.  Ni hao.  Yes, I speak many languages.  I am Milos, the international jet setting bunny.  Mother Nature employs me to deliver eggs to important people in foreign countries.  A kind of Easter ambassador.  I know pretty much all the airports of the world, as I regularly fly both in and out of them.  In fact I spend more of my time in the air than on the ground!  I love finding out about new cultures and meeting foreign rabbits."]
[{"$f":"UPPER(SUBSTITUTE(SUBSTITUTE(SUBSTITUTE(Treats!C9,\" \",\"\"),\".\",\"\"),\",\",\"\"))","v":""},"MAKESYOUGROWHAIRYTOES",{"$f":"A4=B4","v":false},null,"JEAN-PIERRE","Bonjour!  Je m'appelle Jean Pierre.  I am a French bunny who specialises in baking.  I trained as a pastry chef, but now I am happy baking cakes, desserts and sweetmeats of all kinds.  Mother Nature is happy for me to experiment in the kitchen in case I come up with a new, exciting flavour for her chocolate Easter eggs.  When I am in a creative culinary mood, I let nothing stand in my way.  I will happily steal the ingredients I need!  In the “Square Eggs” puzzle you will see one of my creations.  Toffee Torte Fudge!"]
[{"$f":"UPPER(SUBSTITUTE(SUBSTITUTE(SUBSTITUTE(Treats!C12,\" \",\"\"),\".\",\"\"),\",\",\"\"))","v":""},"CLOCKWORKOMELETTEMAKER",false,null,"TRISTAN","Hello.  I am Tristan, the romantic bunny.  I am very good looking, with big soulful eyes, long floppy ears and a huge fluffy tail.  I am very popular with the lady bunnies, who can’t seem to get enough of me.  And I must admit I am very partial to them as well.  Mother Nature employs me to deliver very special eggs.  The large ones, wrapped up in big silky bows, and filled with caramel hearts and rose flavoured truffles.  Eggs for lovers!  There is nothing like chocolate to charm your way into a girl’s heart!"]
[{"$f":"UPPER(SUBSTITUTE(SUBSTITUTE(SUBSTITUTE(Treats!C15,\" \",\"\"),\".\",\"\"),\",\",\"\"))","v":""},"RASPBERRYMERINGUESLICES",false,null,"JOE","How do!  I am Joe, the action bunny.  I am a hyperactive bunny and I am never happier than when I am on the move.  I love all types of high adrenaline activities.  Bobsleighing, bungee jumping, free fall parachuting.  Mother Nature employs me to deliver Easter eggs to the most remote and dangerous places in the world.  Jungles, volcanoes, swamps and war zones!  It is a very exciting job and I love it!"]
[{"$nulls":4},"HEZEKIAH","Greetings my friend.  I am Hezekiah.  I am very wise with mystical powers, and my rabbit friends call me ‘The Witch Doctor Bunny’.  It is true that I enjoy making medicines in my cauldron.  And that I use very unusual ingredients.  But the important thing is that these medicines work.  I can cure many types of illness and indisposition.  Mother Nature is happy for me to experiment.  After all, germs and bacteria fall under her rule too, and she needs to be able to control them!"]
["PLAYER ACCUSATION"]
["Number via macro","LookUp",null,null,"Accusation Lookup"]
[0,{"$f":"VLOOKUP(A10,ACCUSATIONLOOKUP,2,FALSE)","v":"Unknown"},null,null,0,"Unknown"]
[0,{"$f":"VLOOKUP(A11,ACCUSATIONLOOKUP,2,FALSE)","v":"Unknown"},null,null,1,"Hans - The Inventor Bunny"]
[0,{"$f":"VLOOKUP(A12,ACCUSATIONLOOKUP,2,FALSE)","v":"Unknown"},null,null,2,"Milos - The International Bunny"]
[{"$nulls":4},3,"Jean-Pierre - The Baking Bunny"]
["ALLOW ACCESS TO CONFESSION",{"$nulls":3},4,"Tristan - The Romantic Bunny"]
[0,{"$nulls":3},5,"Joe - The Action Bunny"]
[{"$nulls":4},6,"Hezekiah - The Witch Doctor Bunny"]
[{"$nulls":4},7,"Chocolate Eggs"]
[{"$nulls":4},8,"Cuckoo Eggs"]
[{"$nulls":4},9,"Diamond Encrusted Eggs"]
[{"$nulls":4},10,"Dragon Eggs"]
[{"$nulls":4},11,"Fossilised Eggs"]
[{"$nulls":4},12,"Square Eggs"]
[{"$nulls":4},13,"Donated To Museum"]
[{"$nulls":4},14,"Gave Them To Girlfriend"]
[{"$nulls":4},15,"Scoffed The Lot"]
[{"$nulls":4},16,"Sold On eBay"]
[{"$nulls":4},17,"Tried To Hatch Them"]
[{"$nulls":4},18,"Used In Recipe"]

{"sheet":"Index","index":1,"n_rows":5,"n_cols":7,"rows_kept":5}
[]
[{"$nulls":6},"THE GREAT EASTER EGG THEFT - BOOK 1"]
[]
[]
[{"$nulls":6},"INDEX"]

{"sheet":"Intro","index":2,"n_rows":1,"n_cols":3,"rows_kept":1}
[null,null,"A MESSAGE FROM MOTHER NATURE"]

{"sheet":"How it works","index":3,"n_rows":1,"n_cols":3,"rows_kept":1}
[null,null,"HOW TO SOLVE THE CASE"]

{"sheet":"Suspects","index":4,"n_rows":10,"n_cols":8,"rows_kept":10,"merged":[[9,3,9,5]]}
[null,null,"MEET THE SUSPECTS"]
[]
[]
[{"$nulls":7},{"$f":"VLOOKUP(D10,BUNNYLOOKUP,2,FALSE)","v":"Hello there.  I am Hans, the inventor bunny.  I love to experiment and make wild and wacky inventions out of everyday objects.  I am never happier than when surrounded by cogs, bolts, washing up liquid bottles and batteries! I am very intelligent, and my favourite places are libraries and museums, where I can gain even more knowledge.  Unfortunately I am subject to brainstorm disease.  I had a severe episode of it recently, but fortunately Hezekiah made me a medicine that cured me."}]
[]
[]
[]
[]
[]
[{"$nulls":3},"HANS",{"$nulls":3},"Click on the bunny's name and use the drop-down box to meet another suspect"]

{"sheet":"Elimination Grid","index":5,"n_rows":11,"n_cols":8,"rows_kept":11,"merged":[[8,2,8,7]]}
[null,null,"ELIMINATION GRID"]
[]
[null,null,"Easter Bunny Suspects",{"$nulls":4},"Click on a suspect/item to eliminate them. Click again to cancel your elimination."]
[null,null,"Hans\n(The Inventor Bunny)","Milos\n(The International Bunny)","Jean-Pierre\n(The Baking Bunny)","Tristan\n(The Romantic  Bunny)","Joe\n(The Action Bunny)","Hezekiah\n(The Witch Doctor Bunny)"]
[null,null,"Egg Types"]
[null,null,"Chocolate\nEggs","Cuckoo\nEggs","Diamond\nEncrusted Eggs","Dragon\nEggs","Fossilised\nEggs","Square\nEggs"]
[null,null,"Egg Fates"]
[null,null,"Donated\nTo Museum","Gave Them\nTo Girlfriend","Scoffed\nThe Lot","Sold\nOn eBay","Tried To\nHatch Them","Used in\nRecipe"]
[]
[]
[{"$nulls":7},"www.merrymurder.com"]

{"sheet":"Treats","index":6,"n_rows":15,"n_cols":4,"rows_kept":15}
[null,null,"MOTHER NATURE'S TREATS - SHOULD YOU SOLVE THE CASE"]
[]
[]
[]
[null,null,"Which country will Milos escort you to for a luxury holiday?"]
[{"$nulls":3},{"$f":"IF(Mechanics!C3=TRUE,\"ü\",\"û\")","v":"û"}]
[]
[null,null,"What effect will the Super Elixir, brewed specially for you by Hezekiah, have when taken?"]
[{"$nulls":3},{"$f":"IF(Mechanics!C4=TRUE,\"ü\",\"û\")","v":"û"}]
[]
[null,null,"What invention will Hans let you have a play with?"]
[{"$nulls":3},{"$f":"IF(Mechanics!C5=TRUE,\"ü\",\"û\")","v":"û"}]
[]
[null,null,"What special baking delicacy will Jean Pierre rustle up for you?"]
[{"$nulls":3},{"$f":"IF(Mechanics!C6=TRUE,\"ü\",\"û\")","v":"û"}]

{"sheet":"Puzzle1A","index":7,"n_rows":1,"n_cols":3,"rows_kept":1}
[null,null,"01 - MILOS’S JET SETTING WORD SEARCH"]

{"sheet":"Puzzle1B","index":8,"n_rows":13,"n_cols":20,"rows_kept":13}
[null,null,"01 - MILOS’S JET SETTING WORD SEARCH"]
[]
[null,null,"U","R","E","P","S","D","N","A","L","N","E","E","R","G",null,"AMERICA","ERITREA","KUWAIT"]
[null,null,"K","ñ","W","A","D","A","N","A","C","H","I","L","E","A",null,"ARUBA","ETHIOPIA","MONGOLIA"]
[null,null,"R","U","S","S","I","A","D","E","N","M","A","R","K","I",null,"AUSTRIA","FRANCE","NEPAL"]
[null,null,"A","A","W","L","N","A","N","I","H","C","M","I","I","P",null,"BOTSWANA","GERMANY","PERU"]
[null,null,"I","E","ñ","A","D","I","N","ñ","O","A","E","T","T","O",null,"CANADA","GHANA","PORTUGAL"]
[null,null,"N","R","Z","G","I","E","E","C","N","A","R","F","A","I",null,"CHILE","GREENLAND","RUSSIA"]
[null,null,"E","T","A","U","A","T","P","Y","G","E","I","ñ","L","H",null,"CHINA","HAITI","SPAIN"]
[null,null,"A","I","R","T","S","U","A","I","K","H","C","R","Y","T",null,"CUBA","HONG KONG","UKRAINE"]
[null,null,"L","R","U","R","A","ñ","L","R","O","D","A","U","C","E",null,"DENMARK","INDIA","URUGUAY"]
[null,null,"N","E","B","O","T","S","W","A","N","A","D","N","B","ñ",null,"ECUADOR","IRAN"]
[null,null,"N","I","A","P","S","M","O","N","G","O","L","I","A","A",null,"EGYPT","ITALY"]

{"sheet":"Puzzle2","index":9,"n_rows":15,"n_cols":20,"rows_kept":15}
[null,null,"02 - EGG LAYERS PUZZLE"]
[]
[{"$nulls":7},"↓"]
[]
[{"$nulls":5},"L"]
[{"$nulls":6},"O"]
[{"$nulls":5},"C"]
[{"$nulls":16},"ALLIGATOR","CROCODILE","GOLDFISH","PYTHON"]
[{"$nulls":6},"I",{"$nulls":9},"BISON","CROW","LLAMA","SCORPION"]
[{"$nulls":9},"O",{"$nulls":6},"BLUE WHALE","DORMOUSE","MOTH","SEAL"]
[{"$nulls":9},"A",{"$nulls":6},"BUSH BABY","ECHIDNA","PEACOCK","TORTOISE"]
[{"$nulls":6},"A",{"$nulls":9},"CRAB","GIRAFFE","PLATYPUS","WOLF"]
[{"$nulls":8},"L"]
[{"$nulls":12},"E"]
[{"$nulls":7},"↑"]

{"sheet":"Puzzle3","index":10,"n_rows":1,"n_cols":3,"rows_kept":1}
[null,null,"03 - JOE'S PARACHUTE JUMP"]

{"sheet":"Puzzle4A","index":11,"n_rows":1,"n_cols":3,"rows_kept":1}
[null,null,"04 - HEZEKIAH'S SUPER ELIXIR"]

{"sheet":"Puzzle4B","index":12,"n_rows":31,"n_cols":37,"rows_kept":31,"merged":[[2,2,2,6],[2,8,2,12],[2,14,2,18],[2,20,2,24],[2,26,2,30],[3,2,3,6],[3,8,3,12],[3,14,3,18],[3,20,3,24],[3,26,3,30],[4,2,4,6],[4,8,4,12],[4,14,4,18],[4,20,4,24],[4,26,4,30],[5,2,5,6],[5,8,5,12],[5,14,5,18],[5,20,5,24],[5,26,5,30],[6,2,6,6],[6,8,6,12],[6,14,6,18],[6,20,6,24],[6,26,6,30]]}
[null,null,"04 - HEZEKIAH'S SUPER ELIXIR"]
[]
[null,null,"ANISEED",{"$nulls":5},"COCONUT",{"$nulls":5},"ENTRAILS",{"$nulls":5},"HOLLY LEAVES",{"$nulls":5},"SNAKE EGGS"]
[null,null,"BELLADONNA",{"$nulls":5},"CRAB CLAWS",{"$nulls":5},"FOX TEETH",{"$nulls":5},"HONEY",{"$nulls":5},"TAPIOCA"]
[null,null,"BUFFALO MILK",{"$nulls":5},"CURRY POWDER",{"$nulls":5},"FRESH DUNG",{"$nulls":5},"OWL FEATHERS",{"$nulls":5},"THISTLEDOWN"]
[null,null,"CHOP SUEY",{"$nulls":5},"DANDRUFF",{"$nulls":5},"FROG SPIT",{"$nulls":5},"QUICKLIME",{"$nulls":5},"VINTAGE PORT"]
[null,null,"COCKROACHES",{"$nulls":5},"DEW DROPS",{"$nulls":5},"GARLIC",{"$nulls":5},"SHOE POLISH",{"$nulls":5},"ZINC NITRATE"]
[]
[{"$nulls":4},"M"]
[]
[{"$nulls":3},"S","G","N",null,null,"A",null,"N",null,"S",null,"S",null,"A",null,"W",null,"W","D","C","P",null,null,"D",null,"P",null,"E",null,null,"W","Y","H","O"]
[null,null,"S","A",null,"E","G",null,null,"E",null,"E",null,null,"R","L",null,"A","C",null,null,"E","R","U","Y",null,null,"W","D","O",null,null,"N","D","T","L"]
[{"$nulls":3},"K","M","E",null,null,"I",null,"D",null,"A",null,"C",null,"K",null,"B",null,"E","R","O","R",null,null,"R",null,"S",null,"S",null,null,"S","I","T","E"]
[]
[]
[]
[null,null,"E","I","T","Z",null,null,"T",null,"R",null,"U",null,null,"I",null,"A",{"$nulls":3},"O","H","S",null,null,"G",null,"E",null,"N",null,"C",null,"N",null,"C"]
[{"$nulls":3},"T","O","I","A",null,null,"S","E","A",{"$nulls":3},"G",null,"L",null,null,"L","O",null,"P","I",null,"U","R",null,"S","G",null,null,"O",null,"O"]
[null,null,"C","R","N","N",null,null,"N",null,"L",null,"I",null,null,"C",null,"R",{"$nulls":3},"S","H","E",null,null,"H",null,"F",null,"D",null,"T",null,"U",null,"R"]
[]
[]
[]
[null,null,"E",null,"O",null,"T",null,null,"F","K","M","U",null,"W","H","E","F",{"$nulls":3},"Y",null,"O",{"$nulls":3},"G","I","I","E",null,"N",null,"U",null,"A"]
[{"$nulls":3},"E","O","H",null,null,"L","B","W","O",{"$nulls":3},"H","S","E","R",null,null,"H",null,"A",null,null,"N","T","T","P",{"$nulls":3},"D","R","F"]
[null,null,"X",null,"T",null,"F",null,null,"A","I","L","F",null,"T","A","O","L",{"$nulls":3},"E",null,"N",{"$nulls":3},"R","O","A","V",null,"F",null,"R",null,"D"]
[]
[]
[]
[null,null,"A",null,"N",null,"B",null,"C",null,"A",null,"I",null,null,"U","I","M",null,null,"O","H","R","O",null,null,"O",null,"E",null,"R",null,null,"O","E","E","L"]
[null,null,"O","L",null,"A","E",null,null,"T",null,"Y",null,null,"I","L",null,"C","E",null,null,"E","K","O","C",null,null,"T","P","I",null,null,"A","S","H","L"]
[null,null,"N",null,"D",null,"L",null,"A",null,"P",null,"O",null,null,"T","Q","K",null,null,"S","C","C","A",null,null,"G",null,"S",null,"F",null,null,"V","L","S","Y"]

{"sheet":"Puzzle5","index":13,"n_rows":16,"n_cols":19,"rows_kept":16,"merged":[[12,2,12,5],[12,6,12,17],[12,18,12,21],[13,2,13,3],[13,4,13,5],[13,6,13,9],[13,10,13,13],[13,14,13,17],[13,18,13,21],[14,2,14,3],[14,4,14,5],[14,6,14,9],[14,10,14,13],[14,14,14,17],[14,18,14,21],[15,2,15,3],[15,4,15,5],[15,6,15,9],[15,10,15,13],[15,14,15,17],[15,18,15,21]]}
[null,null,"05 - SQUARE EGG SEARCH"]
[]
[null,null,"W","I","E","S","T","N","I","B","E","Y","C","E","S","E","B","L","N"]
[null,null,"I","K","O","L","R","T","M","P","R","R","A","C","H","E","R","I","U"]
[null,null,"I","E","D","Y","L","U","T","S","A","R","K","Y","C","H","A","Z","T"]
[null,null,"N","I","P","R","B","E","O","L","I","F","E","R","R","E","N","G","E"]
[null,null,"E","P","L","R","E","B","H","G","U","R","M","I","P","M","A","T","R"]
[null,null,"A","P","E","T","E","T","O","U","I","T","E","L","L","U","E","N","I"]
[null,null,"A","G","G","O","E","T","R","C","R","A","A","T","C","P","P","A","H"]
[null,null,"G","N","R","F","F","E","F","E","B","N","E","P","T","L","C","B","H"]
[null,null,"E","E","E","E","G","D","U","R","R","Y","A","R","E","E","R","A","M"]
[]
[null,null,"4 Letters",{"$nulls":3},"9 Letters",{"$nulls":11},"16 Letters"]
[null,null,"KIWI",null,"PEAR",null,"BLUEBERRY",{"$nulls":3},"CRANBERRY",{"$nulls":3},"RASPBERRY",{"$nulls":3},"CHERRY CHEESECAKE"]
[null,null,"LIME",null,"PLUM",null,"BRAZIL NUT",{"$nulls":3},"GREENGAGE",{"$nulls":3},"TANGERINE",{"$nulls":3},"TOFFEE TORTE FUDGE"]
[null,null,"MINT",null,"SLOE",null,"CRAB APPLE",{"$nulls":3},"PINEAPPLE",{"$nulls":3},"UGLI FRUIT"]

{"sheet":"Puzzle6","index":14,"n_rows":1,"n_cols":3,"rows_kept":1}
[null,null,"06 - EASTER BONNET OBSERVATION"]

{"sheet":"Puzzle7A","index":15,"n_rows":1,"n_cols":3,"rows_kept":1}
[null,null,"07 - HANS' MEGA-SIZED WORD SEARCH"]

{"sheet":"Puzzle7B","index":16,"n_rows":17,"n_cols":21,"rows_kept":17,"merged":[[2,18,2,20]]}
[null,null,"07 - HANS' MEGA-SIZED WORD SEARCH"]
[]
[null,null,"E","N","I","L","G","N","I","H","S","I","F","B","E","L","T",null,"NECESSARY COMPONENTS FOR INVENTION"]
[null,null,"S","L","I","Z","S","R","E","I","L","P","S","C","N","C","L",null,"AXLE","DRAIN","MALLET"]
[null,null,"N","O","T","R","I","C","G","E","N","I","W","T","G","I","P",null,"BALLOON","DRAWING PINS","MOTOR"]
[null,null,"I","?","E","T","O","N","G","K","W","P","O","O","I","T","L",null,"BARREL","DYNAMO","PIPE CLEANER"]
[null,null,"P","I","L","C","O","N","C","A","V","E","L","E","N","S","Y",null,"BELLOWS","EGG CUP","PLIERS"]
[null,null,"G","R","L","D","O","B","U","L","B","C","L","K","E","A","W",null,"BELT","ELASTIC","PLYWOOD"]
[null,null,"N","O","A","R","M","G","P","U","L","L","E","Y","S","L","O",null,"BOXES","ENGINE","PULLEY"]
[null,null,"I","P","M","A","L","C","S","U","E","E","B","P","T","E","O",null,"BULB","FISHING LINE","REEL"]
[null,null,"W","E","L","I","G","T","E","N","G","A","M","E","A","N","D",null,"CANDLE","FLOATS","RUBBER BAND"]
[null,null,"A","L","S","N","E","L","X","E","V","N","O","C","O","T","R",null,"CLAMP","GEAR BOX","TAPE"]
[null,null,"R","D","Y","N","A","M","O","E","T","E","I","O","L","I","E",null,"CLIP","GLASS","TIN CAN"]
[null,null,"D","N","A","B","R","E","B","B","U","R","L","H","F","N","H",null,"COGS","GLUE","TWINE"]
[null,null,"T","A","?","E","B","A","R","R","E","L","M","?","S","C","S",null,"CONCAVE LENS","IRON","WASHER"]
[null,null,"A","C","K","R","O","C","S","S","A","L","G","K","E","A","A",null,"CONVEX LENS","LEVER","WASHING UP BOTTLE"]
[null,null,"R","E","E","L","X","A","R","B","R","E","V","E","L","N","W",null,"CORK","MAGNET","ZINC"]

{"sheet":"Puzzle8","index":17,"n_rows":19,"n_cols":23,"rows_kept":19,"merged":[[5,20,5,22]]}
[null,null,"08 - EGG COOKING JIG"]
[]
[]
[]
[]
[{"$nulls":20},"EGG COOKING METHODS"]
[{"$nulls":20},"5 Letters","7 Letters","8 Letters"]
[{"$nulls":14},"R",{"$nulls":5},"BAKED","CODDLED","ATLANTIC"]
[{"$nulls":9},"D",{"$nulls":10},"CURRY","DEVILED","BENEDICT"]
[{"$nulls":20},"FRIED","NEPTUNE","OMELETTE"]
[{"$nulls":20},"6 Letters","POACHED","OVER EASY"]
[{"$nulls":20},"BOILED","SHIRRED","9 Letters"]
[{"$nulls":20},"MORNAY","PROVENCAL","PROVENCAL"]
[{"$nulls":20},"POCKET","SCRAMBLED","SCRAMBLED"]
[{"$nulls":20},"SARDOU",null,"10 Letters"]
[{"$nulls":20},"SCOTCH",null,"FLORENTINE"]
[{"$nulls":22},"11 Letters"]
[{"$nulls":22},"SUNNY SIDE UP"]
[{"$nulls":6},"E"]

{"sheet":"Puzzle9","index":18,"n_rows":12,"n_cols":8,"rows_kept":12}
[null,null,"09 - MATHEMATICAL EGG HUNT"]
[]
[{"$nulls":3},"JACK FROST: ","12 x 3",null,"MR MCGREGOR: ","46 - 17"]
[{"$nulls":3},"MAD MARCH HARE:","108 / 9",null,"PRISICLLA:","50 + 37"]
[]
[null,null,31,13,22,73,44,90]
[null,null,"88 / 2","8 x 7","48 + 49","60 / 6","95 - 50","132 / 6"]
[null,null,60,91,87,36,97,56]
[null,null,"36 + 28","100 - 7","17 - 4","64 - 17","112 / 7","12 x 5"]
[null,null,12,47,45,29,10,16]
[null,null,"16 + 57","18 + 13","46 - 21","30 x 3","13 x 7"]
[null,null,25,64,93]

{"sheet":"Puzzle10","index":19,"n_rows":1,"n_cols":3,"rows_kept":1}
[null,null,"10 - TRISTAN'S BOUQUET DELIVERY MAZE"]

{"sheet":"Puzzle11","index":20,"n_rows":12,"n_cols":10,"rows_kept":12}
[null,null,"11 - HIDDEN NUMBERS"]
{"$rows_empty":7}
[{"$nulls":5},30,50,1,3,80]
[{"$nulls":5},17,2,6,10,4]
[{"$nulls":5},9,70,0,11,100]
[{"$nulls":5},12,5,90,40,7]

{"sheet":"Puzzle12A","index":21,"n_rows":17,"n_cols":18,"rows_kept":17}
[null,null,"12 - JEAN PIERRE'S BAKING CODE"]
{"$rows_empty":12}
[{"$nulls":3},"G5","C5","H7","A9","J1","H3","J6","N1","L4"]
[]
[]
[{"$nulls":3},"B5","F17","I16","N2","F4","J10","L7","L3",null,"K7","H9","H5","E7","G1","H1"]

{"sheet":"Puzzle12B","index":22,"n_rows":23,"n_cols":24,"rows_kept":23}
[null,null,"12 - JEAN PIERRE'S BAKING WORD JIG"]
[]
[{"$nulls":4},"A","B","C","D","E","F","G","H","I","J","K","L","M","N",{"$nulls":4},"BAKING INGREDIENTS"]
[]
[null,null,1,{"$nulls":16},1,null,"3 Letters","5 Letters","8 Letters"]
[null,null,2,{"$nulls":16},2,null,"JAM","DATES","APRICOTS"]
[null,null,3,{"$nulls":16},3,null,"OIL","FLOUR","CINNAMON"]
[null,null,4,{"$nulls":16},4,null,"4 Letters","LIMES","MARZIPAN"]
[null,null,5,{"$nulls":16},5,null,"LARD","PECAN","9 Letters"]
[null,null,6,{"$nulls":16},6,null,"MALT","SUGAR","LEMON ZEST"]
[null,null,7,{"$nulls":8},"S",{"$nulls":7},7,null,"MILK","THYME","MARGARINE"]
[null,null,8,{"$nulls":8},"A",{"$nulls":7},8,null,"MINT","6 Letters","10+ Letters"]
[null,null,9,{"$nulls":8},"L",{"$nulls":7},9,null,"RICE","BUTTER","MAPLE SYRUP"]
[null,null,10,{"$nulls":8},"T",{"$nulls":7},10,null,"SALT","NUTMEG","MIXED FRUITS"]
[null,null,11,{"$nulls":16},11,null,"SUET","7 Letters"]
[null,null,12,{"$nulls":16},12,null,"WHEY","QUINCES"]
[null,null,13,{"$nulls":16},13,null,null,"TREACLE"]
[null,null,14,{"$nulls":16},14,null,null,"VANILLA"]
[null,null,15,{"$nulls":16},15]
[null,null,16,{"$nulls":16},16]
[null,null,17,{"$nulls":16},17]
[]
[{"$nulls":4},"A","B","C","D","E","F","G","H","I","J","K","L","M","N"]

{"sheet":"Puzzle12C","index":23,"n_rows":12,"n_cols":20,"rows_kept":12}
[null,null,"12 - JEAN PIERRE'S BAKING CODE"]
[]
[null,null,"H10","L2","H3","H7","N7","I9","H9","F17","F4","L3","J10","G17","K7","L1","G1","G5","L17","I5"]
[null,null,"T"]
[]
[null,null,"L12","J3","H1","B1","L7","C5","J6","G12","C3","E5","G17","I3","J17","E1","M8","B17","C12","N2"]
[]
[]
[null,null,"J4","K4","L14","N1","L1","B9","I16","N4","K17","K4","M7","L4","I17","E3","F3","D4","D17","J5"]
[]
[]
[null,null,"I17","H10","F7","A7","B5","J9","M17","F17","C1","F6"]

{"sheet":"Sweepstake","index":24,"n_rows":21,"n_cols":5,"rows_kept":21,"merged":[[3,2,8,2],[9,2,14,2],[15,2,20,2]]}
[null,null,"MERRYMURDER SWEEPSTAKE"]
[]
[{"$nulls":3},"ITEM","SELECTED BY"]
[null,null,"BUNNIES","Hans"]
[{"$nulls":3},"Hezekiah"]
[{"$nulls":3},"Jean Pierre"]
[{"$nulls":3},"Joe"]
[{"$nulls":3},"Milos"]
[{"$nulls":3},"Tristan"]
[null,null,"EGG TYPES","Chocolate Eggs"]
[{"$nulls":3},"Cuckoo Eggs"]
[{"$nulls":3},"Diamond Encrusted Eggs"]
[{"$nulls":3},"Dragon Eggs"]
[{"$nulls":3},"Fossilised Eggs"]
[{"$nulls":3},"Square Eggs"]
[null,null,"EGG FATES","Donated to museum"]
[{"$nulls":3},"Gave them to girlfriend"]
[{"$nulls":3},"Scoffed the lot"]
[{"$nulls":3},"Sold on eBay"]
[{"$nulls":3},"Tried to hatch them"]
[{"$nulls":3},"Used in recipe"]

{"sheet":"Accusation","index":25,"n_rows":8,"n_cols":4,"rows_kept":8}
[null,null,"YOUR FORMAL ACCUSATION"]
[]
[]
[null,null,"You are accusing:  ",{"$f":"Mechanics!$B$10","v":"Unknown"}]
[]
[null,null,"Of stealing the:  ",{"$f":"Mechanics!$B$11","v":"Unknown"}]
[]
[null,null,"And their fate was:  ",{"$f":"Mechanics!$B$12","v":"Unknown"}]

{"sheet":"Confession","index":26,"n_rows":22,"n_cols":26,"rows_kept":22,"hidden":true}
[null,null,"CONFESSION"]
[]
[null,null,9,20,23,1,19,9,",",10,15,5,20,8,5,1,3,20,9,15,14,2,21,14,14,25]
[{"$nulls":8},","]
[]
[null,null,",",23,8,15,19,20,15,12,5,20,8,5,6,15,19,19,9,12,9,19,5,4,5,7]
[null,null,","]
[]
[null,null,7,19,".",13,15,20,8,5,18,14,1,20,21,18,5,18,5,17,21,9,18,5,19,13]
[{"$nulls":4},"."]
[]
[null,null,5,20,15,4,5,12,9,22,5,18,1,14,5,7,7,20,15,14,5,16,20,21,14,5]
[]
[]
[null,null,"-",1,14,4,9,3,1,14,"‘",20,19,3,21,2,1,4,9,22,5,"!",19,15,9,19]
[null,null,"-",{"$nulls":7},"'"]
[]
[null,null,15,12,4,20,8,5,5,7,7,19,15,14,5,2,1,25,20,15,16,1,25,6,15,18]
[]
[]
[null,null,19,15,13,5,12,5,19,19,15,14,19,"."]
[{"$nulls":13},"."]

{"sheet":"Solutions","index":27,"n_rows":1,"n_cols":3,"rows_kept":1,"hidden":true}
[null,null,"PUZZLE SOLUTIONS"]

{"sheet":"PuzzleBonus","index":28,"n_rows":14,"n_cols":18,"rows_kept":14}
[null,null,"13 - AUTHOR'S BONUS PUZZLE"]
[]
[null,null,"E","R","U","T","A","N","E","N","D","J","O","R"]
[null,null,"Y","G","I","R","L","F","R","I","E","N","D","E"]
[null,null,"F","Y","E","R","A","U","Q","S","F","D","I","C"]
[null,null,"O","O","R","R","H","U","R","M","F","R","A","I",null,"HANS","CHOCOLATE","EBAY"]
[null,null,"S","N","E","E","R","E","U","A","O","A","M","P",null,"HEZEKIAH","CUCKOO","GIRLFRIEND"]
[null,null,"S","A","H","S","D","E","Z","T","C","G","O","E",null,"JEAN PIERRE","DIAMOND / ENCRUSTED","HATCHED"]
[null,null,"I","T","T","E","S","E","I","E","S","O","N","R",null,"JOE","DRAGON","MUSEUM"]
[null,null,"L","S","O","U","E","J","H","P","K","N","D","S",null,"MILOS","FOSSILISED","RECIPE"]
[null,null,"I","I","M","I","L","O","S","C","N","I","G","N",null,"MOTHER / NATURE","SQUARE","SCOFFED"]
[null,null,"S","R","Y","A","B","E","U","G","T","A","A","A",null,"TRISTAN"]
[null,null,"E","T","A","L","O","C","O","H","C","A","E","H"]
[null,null,"D","E","T","S","U","R","C","N","E","S","H","J"]

{"sheet":"Other Games","index":29,"n_rows":31,"n_cols":12,"rows_kept":31,"merged":[[4,11,6,11],[12,11,14,11]]}
[{"$nulls":6},"A SELECTION OF SOME OF THE MERRYMURDER PRODUCTS"]
[]
[null,null,"FULL PARTY GAMES",{"$nulls":3},"MURDER IN AN HOUR GAMES",{"$nulls":3},"MURDER MYSTERY PUZZLE BOOKS"]
[null,null,"Make an evening of it!",{"$nulls":3},"Costumeless impromptu games lasting about an hour",{"$nulls":3},"Solo challenges for avid puzzlers"]
[null,"The Merrymurder","","The Merrymurder","","Murder in an Hour","","Murder in an Hour","","The Pungent Pumpkin","","DOWNLOAD\nFOR FREE"]
[null,"Wine Tasting Game","","Pantocrime","","at Cloo Hall ","","at the BBQ","","Poisoner Puzzle Book","ç"]
[null,"9 to 12 players",null,"12 to 18 players",null,"3 to 10 players",null,"3 to 10 players",null,"14 puzzles"]
[]
[null,"Slaughter","","Murder","","Murder in an Hour","","Murder in an Hour","","Who Stole","","Monster"]
[null,"at the Circus ","","at the North Pole ","","with Pumpkin Poison","","at the Bake Off","","Santa’s Sleigh? ","","Birthday Party"]
[null,"13 to 18 players",null,"14 to 18 players",null,"4 to 12 players",null,"4 to 12 players",null,"13 puzzles",null,"13 puzzles"]
[]
[null,"The Pungent","","The Murder","","Murder in an Hour at the","","Murder in an Hour","","The Great Easter",null,"NOW AVAILABLE AS A MICROSOFT EXCEL BASED PUZZLE BOOK"]
[null,"Pumpkin Poisoner ","","of Mrs Whyte ","","Psychic Coffee Morning","","at Monster Mansion","","Egg Theft","ç"]
[null,"8 to 10 players",null,"8 to 11 players",null,"4 to 12 players",null,"4 to 12 players",null,"13 puzzles"]
[]
[null,"The Eight Deadly Sins","","An Easter","","Murder in an Hour","","Murder in an Hour","","Who took the Tail","","Who Flame-Grilled"]
[null,"Pirate/Cannibal Bbq ","","Extravaganza ","","in Space","","in Camelot","","off the Easter Bunny? ","","Frosty? "]
[null,"11 to 14 players",null,"11 to 15 players",null,"4 to 12 players",null,"4 to 12 players",null,"21 puzzles",null,"20 puzzles"]
[]
[null,"The Wake","","Ten Little","","Murder in an Hour","","Murder in an Hour","","Murder","","Murder"]
[null,"for Humpty Dumpty ","","Vampires ","","with Robin Hood","","with Santa’s Reindeer","","at Herbwell Hall","","at the Seaside"]
[null,"12 to 16 players",null,"10 players",null,"4 to 12 players",null,"4 to 12 players",null,"22 puzzles",null,"21 puzzles"]
[]
[null,"The Cutting It","","Orgy","",{"$nulls":3},"","The Shakespeare","","Who Spooked"]
[null,"Killer ","","of Death ","",{"$nulls":3},"","Murder Mystery","","Spook? "]
[null,"13 to 16 players",null,"16 to 20 players",{"$nulls":5},"36 puzzles",null,"20 puzzles"]
[]
[{"$nulls":9},"Murder at","","Murder at the"]
[{"$nulls":9},"Cainem College","","Surprise Birthday Party"]
[{"$nulls":9},"47 puzzles",null,"38 puzzles"]

{"sheet":"Suspects_Reset","index":30,"n_rows":10,"n_cols":8,"rows_kept":10,"hidden":true,"merged":[[9,3,9,5]]}
[null,null,"MEET THE SUSPECTS"]
[]
[]
[{"$nulls":7},{"$f":"VLOOKUP(D10,BUNNYLOOKUP,2,FALSE)","v":"Hello there.  I am Hans, the inventor bunny.  I love to experiment and make wild and wacky inventions out of everyday objects.  I am never happier than when surrounded by cogs, bolts, washing up liquid bottles and batteries! I am very intelligent, and my favourite places are libraries and museums, where I can gain even more knowledge.  Unfortunately I am subject to brainstorm disease.  I had a severe episode of it recently, but fortunately Hezekiah made me a medicine that cured me."}]
[]
[]
[]
[]
[]
[{"$nulls":3},"HANS",{"$nulls":3},"Click on the bunny's name and use the drop-down box to meet another suspect"]

{"sheet":"Elimination Grid_Reset","index":31,"n_rows":11,"n_cols":8,"rows_kept":11,"hidden":true,"merged":[[8,2,8,7]]}
[null,null,"ELIMINATION GRID"]
[]
[null,null,"Easter Bunny Suspects",{"$nulls":4},"Click on a suspect/item to eliminate them. Click again to cancel your elimination."]
[null,null,"Hans\n(The Inventor Bunny)","Milos\n(The International Bunny)","Jean-Pierre\n(The Baking Bunny)","Tristan\n(The Romantic  Bunny)","Joe\n(The Action Bunny)","Hezekiah\n(The Witch Doctor Bunny)"]
[null,null,"Egg Types"]
[null,null,"Chocolate\nEggs","Cuckoo\nEggs","Diamond\nEncrusted Eggs","Dragon\nEggs","Fossilised\nEggs","Square\nEggs"]
[null,null,"Egg Fates"]
[null,null,"Donated\nTo Museum","Gave Them\nTo Girlfriend","Scoffed\nThe Lot","Sold\nOn eBay","Tried To\nHatch Them","Used in\nRecipe"]
[]
[]
[{"$nulls":7},"www.merrymurder.com"]

{"sheet":"Treats_Reset","index":32,"n_rows":15,"n_cols":4,"rows_kept":15,"hidden":true}
[null,null,"MOTHER NATURE'S TREATS - SHOULD YOU SOLVE THE CASE"]
[]
[]
[]
[null,null,"Which country will Milos escort you to for a luxury holiday?"]
[{"$nulls":3},{"$f":"IF(Mechanics!C3=TRUE,\"ü\",\"û\")","v":"û"}]
[]
[null,null,"What effect will the Super Elixir, brewed specially for you by Hezekiah, have when taken?"]
[{"$nulls":3},{"$f":"IF(Mechanics!C4=TRUE,\"ü\",\"û\")","v":"û"}]
[]
[null,null,"What invention will Hans let you have a play with?"]
[{"$nulls":3},{"$f":"IF(Mechanics!C5=TRUE,\"ü\",\"û\")","v":"û"}]
[]
[null,null,"What special baking delicacy will Jean Pierre rustle up for you?"]
[{"$nulls":3},{"$f":"IF(Mechanics!C6=TRUE,\"ü\",\"û\")","v":"û"}]

{"sheet":"Puzzle1B_Reset","index":33,"n_rows":13,"n_cols":20,"rows_kept":13,"hidden":true}
[null,null,"01 - MILOS’S JET SETTING WORD SEARCH"]
[]
[null,null,"U","R","E","P","S","D","N","A","L","N","E","E","R","G",null,"AMERICA","ERITREA","KUWAIT"]
[null,null,"K","ñ","W","A","D","A","N","A","C","H","I","L","E","A",null,"ARUBA","ETHIOPIA","MONGOLIA"]
[null,null,"R","U","S","S","I","A","D","E","N","M","A","R","K","I",null,"AUSTRIA","FRANCE","NEPAL"]
[null,null,"A","A","W","L","N","A","N","I","H","C","M","I","I","P",null,"BOTSWANA","GERMANY","PERU"]
[null,null,"I","E","ñ","A","D","I","N","ñ","O","A","E","T","T","O",null,"CANADA","GHANA","PORTUGAL"]
[null,null,"N","R","Z","G","I","E","E","C","N","A","R","F","A","I",null,"CHILE","GREENLAND","RUSSIA"]
[null,null,"E","T","A","U","A","T","P","Y","G","E","I","ñ","L","H",null,"CHINA","HAITI","SPAIN"]
[null,null,"A","I","R","T","S","U","A","I","K","H","C","R","Y","T",null,"CUBA","HONG KONG","UKRAINE"]
[null,null,"L","R","U","R","A","ñ","L","R","O","D","A","U","C","E",null,"DENMARK","INDIA","URUGUAY"]
[null,null,"N","E","B","O","T","S","W","A","N","A","D","N","B","ñ",null,"ECUADOR","IRAN"]
[null,null,"N","I","A","P","S","M","O","N","G","O","L","I","A","A",null,"EGYPT","ITALY"]

{"sheet":"Puzzle2_Reset","index":34,"n_rows":15,"n_cols":20,"rows_kept":15,"hidden":true}
[null,null,"02 - EGG LAYERS PUZZLE"]
[]
[{"$nulls":7},"↓"]
[]
[{"$nulls":5},"L"]
[{"$nulls":6},"O"]
[{"$nulls":5},"C"]
[{"$nulls":16},"ALLIGATOR","CROCODILE","GOLDFISH","PYTHON"]
[{"$nulls":6},"I",{"$nulls":9},"BISON","CROW","LLAMA","SCORPION"]
[{"$nulls":9},"O",{"$nulls":6},"BLUE WHALE","DORMOUSE","MOTH","SEAL"]
[{"$nulls":9},"A",{"$nulls":6},"BUSH BABY","ECHIDNA","PEACOCK","TORTOISE"]
[{"$nulls":6},"A",{"$nulls":9},"CRAB","GIRAFFE","PLATYPUS","WOLF"]
[{"$nulls":8},"L"]
[{"$nulls":12},"E"]
[{"$nulls":7},"↑"]

{"sheet":"Puzzle4B_Reset","index":35,"n_rows":31,"n_cols":37,"rows_kept":31,"hidden":true,"merged":[[2,2,2,6],[2,8,2,12],[2,14,2,18],[2,20,2,24],[2,26,2,30],[3,2,3,6],[3,8,3,12],[3,14,3,18],[3,20,3,24],[3,26,3,30],[4,2,4,6],[4,8,4,12],[4,14,4,18],[4,20,4,24],[4,26,4,30],[5,2,5,6],[5,8,5,12],[5,14,5,18],[5,20,5,24],[5,26,5,30],[6,2,6,6],[6,8,6,12],[6,14,6,18],[6,20,6,24],[6,26,6,30]]}
[null,null,"04 - HEZEKIAH'S SUPER ELIXIR"]
[]
[null,null,"ANISEED",{"$nulls":5},"COCONUT",{"$nulls":5},"ENTRAILS",{"$nulls":5},"HOLLY LEAVES",{"$nulls":5},"SNAKE EGGS"]
[null,null,"BELLADONNA",{"$nulls":5},"CRAB CLAWS",{"$nulls":5},"FOX TEETH",{"$nulls":5},"HONEY",{"$nulls":5},"TAPIOCA"]
[null,null,"BUFFALO MILK",{"$nulls":5},"CURRY POWDER",{"$nulls":5},"FRESH DUNG",{"$nulls":5},"OWL FEATHERS",{"$nulls":5},"THISTLEDOWN"]
[null,null,"CHOP SUEY",{"$nulls":5},"DANDRUFF",{"$nulls":5},"FROG SPIT",{"$nulls":5},"QUICKLIME",{"$nulls":5},"VINTAGE PORT"]
[null,null,"COCKROACHES",{"$nulls":5},"DEW DROPS",{"$nulls":5},"GARLIC",{"$nulls":5},"SHOE POLISH",{"$nulls":5},"ZINC NITRATE"]
[]
[{"$nulls":4},"M"]
[]
[{"$nulls":3},"S","G","N",null,null,"A",null,"N",null,"S",null,"S",null,"A",null,"W",null,"W","D","C","P",null,null,"D",null,"P",null,"E",null,null,"W","Y","H","O"]
[null,null,"S","A",null,"E","G",null,null,"E",null,"E",null,null,"R","L",null,"A","C",null,null,"E","R","U","Y",null,null,"W","D","O",null,null,"N","D","T","L"]
[{"$nulls":3},"K","M","E",null,null,"I",null,"D",null,"A",null,"C",null,"K",null,"B",null,"E","R","O","R",null,null,"R",null,"S",null,"S",null,null,"S","I","T","E"]
[]
[]
[]
[null,null,"E","I","T","Z",null,null,"T",null,"R",null,"U",null,null,"I",null,"A",{"$nulls":3},"O","H","S",null,null,"G",null,"E",null,"N",null,"C",null,"N",null,"C"]
[{"$nulls":3},"T","O","I","A",null,null,"S","E","A",{"$nulls":3},"G",null,"L",null,null,"L","O",null,"P","I",null,"U","R",null,"S","G",null,null,"O",null,"O"]
[null,null,"C","R","N","N",null,null,"N",null,"L",null,"I",null,null,"C",null,"R",{"$nulls":3},"S","H","E",null,null,"H",null,"F",null,"D",null,"T",null,"U",null,"R"]
[]
[]
[]
[null,null,"E",null,"O",null,"T",null,null,"F","K","M","U",null,"W","H","E","F",{"$nulls":3},"Y",null,"O",{"$nulls":3},"G","I","I","E",null,"N",null,"U",null,"A"]
[{"$nulls":3},"E","O","H",null,null,"L","B","W","O",{"$nulls":3},"H","S","E","R",null,null,"H",null,"A",null,null,"N","T","T","P",{"$nulls":3},"D","R","F"]
[null,null,"X",null,"T",null,"F",null,null,"A","I","L","F",null,"T","A","O","L",{"$nulls":3},"E",null,"N",{"$nulls":3},"R","O","A","V",null,"F",null,"R",null,"D"]
[]
[]
[]
[null,null,"A",null,"N",null,"B",null,"C",null,"A",null,"I",null,null,"U","I","M",null,null,"O","H","R","O",null,null,"O",null,"E",null,"R",null,null,"O","E","E","L"]
[null,null,"O","L",null,"A","E",null,null,"T",null,"Y",null,null,"I","L",null,"C","E",null,null,"E","K","O","C",null,null,"T","P","I",null,null,"A","S","H","L"]
[null,null,"N",null,"D",null,"L",null,"A",null,"P",null,"O",null,null,"T","Q","K",null,null,"S","C","C","A",null,null,"G",null,"S",null,"F",null,null,"V","L","S","Y"]

{"sheet":"Puzzle5_Reset","index":36,"n_rows":16,"n_cols":19,"rows_kept":16,"hidden":true,"merged":[[12,2,12,5],[12,6,12,17],[12,18,12,21],[13,2,13,3],[13,4,13,5],[13,6,13,9],[13,10,13,13],[13,14,13,17],[13,18,13,21],[14,2,14,3],[14,4,14,5],[14,6,14,9],[14,10,14,13],[14,14,14,17],[14,18,14,21],[15,2,15,3],[15,4,15,5],[15,6,15,9],[15,10,15,13],[15,14,15,17],[15,18,15,21]]}
[null,null,"05 - SQUARE EGG SEARCH"]
[]
[null,null,"W","I","E","S","T","N","I","B","E","Y","C","E","S","E","B","L","N"]
[null,null,"I","K","O","L","R","T","M","P","R","R","A","C","H","E","R","I","U"]
[null,null,"I","E","D","Y","L","U","T","S","A","R","K","Y","C","H","A","Z","T"]
[null,null,"N","I","P","R","B","E","O","L","I","F","E","R","R","E","N","G","E"]
[null,null,"E","P","L","R","E","B","H","G","U","R","M","I","P","M","A","T","R"]
[null,null,"A","P","E","T","E","T","O","U","I","T","E","L","L","U","E","N","I"]
[null,null,"A","G","G","O","E","T","R","C","R","A","A","T","C","P","P","A","H"]
[null,null,"G","N","R","F","F","E","F","E","B","N","E","P","T","L","C","B","H"]
[null,null,"E","E","E","E","G","D","U","R","R","Y","A","R","E","E","R","A","M"]
[]
[null,null,"4 Letters",{"$nulls":3},"9 Letters",{"$nulls":11},"16 Letters"]
[null,null,"KIWI",null,"PEAR",null,"BLUEBERRY",{"$nulls":3},"CRANBERRY",{"$nulls":3},"RASPBERRY",{"$nulls":3},"CHERRY CHEESECAKE"]
[null,null,"LIME",null,"PLUM",null,"BRAZIL NUT",{"$nulls":3},"GREENGAGE",{"$nulls":3},"TANGERINE",{"$nulls":3},"TOFFEE TORTE FUDGE"]
[null,null,"MINT",null,"SLOE",null,"CRAB APPLE",{"$nulls":3},"PINEAPPLE",{"$nulls":3},"UGLI FRUIT"]

{"sheet":"Puzzle7B_Reset","index":37,"n_rows":17,"n_cols":21,"rows_kept":17,"hidden":true,"merged":[[2,18,2,20]]}
[null,null,"07 - HANS' MEGA-SIZED WORD SEARCH"]
[]
[null,null,"E","N","I","L","G","N","I","H","S","I","F","B","E","L","T",null,"NECESSARY COMPONENTS FOR INVENTION"]
[null,null,"S","L","I","Z","S","R","E","I","L","P","S","C","N","C","L",null,"AXLE","DRAIN","MALLET"]
[null,null,"N","O","T","R","I","C","G","E","N","I","W","T","G","I","P",null,"BALLOON","DRAWING PINS","MOTOR"]
[null,null,"I","?","E","T","O","N","G","K","W","P","O","O","I","T","L",null,"BARREL","DYNAMO","PIPE CLEANER"]
[null,null,"P","I","L","C","O","N","C","A","V","E","L","E","N","S","Y",null,"BELLOWS","EGG CUP","PLIERS"]
[null,null,"G","R","L","D","O","B","U","L","B","C","L","K","E","A","W",null,"BELT","ELASTIC","PLYWOOD"]
[null,null,"N","O","A","R","M","G","P","U","L","L","E","Y","S","L","O",null,"BOXES","ENGINE","PULLEY"]
[null,null,"I","P","M","A","L","C","S","U","E","E","B","P","T","E","O",null,"BULB","FISHING LINE","REEL"]
[null,null,"W","E","L","I","G","T","E","N","G","A","M","E","A","N","D",null,"CANDLE","FLOATS","RUBBER BAND"]
[null,null,"A","L","S","N","E","L","X","E","V","N","O","C","O","T","R",null,"CLAMP","GEAR BOX","TAPE"]
[null,null,"R","D","Y","N","A","M","O","E","T","E","I","O","L","I","E",null,"CLIP","GLASS","TIN CAN"]
[null,null,"D","N","A","B","R","E","B","B","U","R","L","H","F","N","H",null,"COGS","GLUE","TWINE"]
[null,null,"T","A","?","E","B","A","R","R","E","L","M","?","S","C","S",null,"CONCAVE LENS","IRON","WASHER"]
[null,null,"A","C","K","R","O","C","S","S","A","L","G","K","E","A","A",null,"CONVEX LENS","LEVER","WASHING UP BOTTLE"]
[null,null,"R","E","E","L","X","A","R","B","R","E","V","E","L","N","W",null,"CORK","MAGNET","ZINC"]

{"sheet":"Puzzle8_Reset","index":38,"n_rows":19,"n_cols":23,"rows_kept":19,"hidden":true,"merged":[[5,20,5,22]]}
[null,null,"08 - EGG COOKING JIG"]
[]
[]
[]
[]
[{"$nulls":20},"EGG COOKING METHODS"]
[{"$nulls":20},"5 Letters","7 Letters","8 Letters"]
[{"$nulls":14},"R",{"$nulls":5},"BAKED","CODDLED","ATLANTIC"]
[{"$nulls":9},"D",{"$nulls":10},"CURRY","DEVILED","BENEDICT"]
[{"$nulls":20},"FRIED","NEPTUNE","OMELETTE"]
[{"$nulls":20},"6 Letters","POACHED","OVER EASY"]
[{"$nulls":20},"BOILED","SHIRRED","9 Letters"]
[{"$nulls":20},"MORNAY","PROVENCAL","PROVENCAL"]
[{"$nulls":20},"POCKET","SCRAMBLED","SCRAMBLED"]
[{"$nulls":20},"SARDOU",null,"10 Letters"]
[{"$nulls":20},"SCOTCH",null,"FLORENTINE"]
[{"$nulls":22},"11 Letters"]
[{"$nulls":22},"SUNNY SIDE UP"]
[{"$nulls":6},"E"]

{"sheet":"Puzzle11_Reset","index":39,"n_rows":12,"n_cols":10,"rows_kept":12,"hidden":true}
[null,null,"11 - HIDDEN NUMBERS"]
{"$rows_empty":7}
[{"$nulls":5},30,50,1,3,80]
[{"$nulls":5},17,2,6,10,4]
[{"$nulls":5},9,70,0,11,100]
[{"$nulls":5},12,5,90,40,7]

{"sheet":"Puzzle12A_Reset","index":40,"n_rows":17,"n_cols":18,"rows_kept":17,"hidden":true}
[null,null,"12 - JEAN PIERRE'S BAKING CODE"]
{"$rows_empty":12}
[{"$nulls":3},"G5","C5","H7","A9","J1","H3","J6","N1","L4"]
[]
[]
[{"$nulls":3},"B5","F17","I16","N2","F4","J10","L7","L3",null,"K7","H9","H5","E7","G1","H1"]

{"sheet":"Puzzle12B_Reset","index":41,"n_rows":23,"n_cols":24,"rows_kept":23,"hidden":true}
[null,null,"12 - JEAN PIERRE'S BAKING WORD JIG"]
[]
[{"$nulls":4},"A","B","C","D","E","F","G","H","I","J","K","L","M","N",{"$nulls":4},"BAKING INGREDIENTS"]
[]
[null,null,1,{"$nulls":16},1,null,"3 Letters","5 Letters","8 Letters"]
[null,null,2,{"$nulls":16},2,null,"JAM","DATES","APRICOTS"]
[null,null,3,{"$nulls":16},3,null,"OIL","FLOUR","CINNAMON"]
[null,null,4,{"$nulls":16},4,null,"4 Letters","LIMES","MARZIPAN"]
[null,null,5,{"$nulls":16},5,null,"LARD","PECAN","9 Letters"]
[null,null,6,{"$nulls":16},6,null,"MALT","SUGAR","LEMON ZEST"]
[null,null,7,{"$nulls":8},"S",{"$nulls":7},7,null,"MILK","THYME","MARGARINE"]
[null,null,8,{"$nulls":8},"A",{"$nulls":7},8,null,"MINT","6 Letters","10+ Letters"]
[null,null,9,{"$nulls":8},"L",{"$nulls":7},9,null,"RICE","BUTTER","MAPLE SYRUP"]
[null,null,10,{"$nulls":8},"T",{"$nulls":7},10,null,"SALT","NUTMEG","MIXED FRUITS"]
[null,null,11,{"$nulls":16},11,null,"SUET","7 Letters"]
[null,null,12,{"$nulls":16},12,null,"WHEY","QUINCES"]
[null,null,13,{"$nulls":16},13,null,null,"TREACLE"]
[null,null,14,{"$nulls":16},14,null,null,"VANILLA"]
[null,null,15,{"$nulls":16},15]
[null,null,16,{"$nulls":16},16]
[null,null,17,{"$nulls":16},17]
[]
[{"$nulls":4},"A","B","C","D","E","F","G","H","I","J","K","L","M","N"]

{"sheet":"Puzzle12C_Reset","index":42,"n_rows":12,"n_cols":20,"rows_kept":12,"hidden":true}
[null,null,"12 - JEAN PIERRE'S BAKING CODE"]
[]
[null,null,"H10","L2","H3","H7","N7","I9","H9","F17","F4","L3","J10","G17","K7","L1","G1","G5","L17","I5"]
[null,null,"T"]
[]
[null,null,"L12","J3","H1","B1","L7","C5","J6","G12","C3","E5","G17","I3","J17","E1","M8","B17","C12","N2"]
[]
[]
[null,null,"J4","K4","L14","N1","L1","B9","I16","N4","K17","K4","M7","L4","I17","E3","F3","D4","D17","J5"]
[]
[]
[null,null,"I17","H10","F7","A7","B5","J9","M17","F17","C1","F6"]

{"sheet":"Sweepstake_Reset","index":43,"n_rows":21,"n_cols":5,"rows_kept":21,"hidden":true,"merged":[[3,2,8,2],[9,2,14,2],[15,2,20,2]]}
[null,null,"MERRYMURDER SWEEPSTAKE"]
[]
[{"$nulls":3},"ITEM","SELECTED BY"]
[null,null,"BUNNIES","Hans"]
[{"$nulls":3},"Hezekiah"]
[{"$nulls":3},"Jean Pierre"]
[{"$nulls":3},"Joe"]
[{"$nulls":3},"Milos"]
[{"$nulls":3},"Tristan"]
[null,null,"EGG TYPES","Chocolate Eggs"]
[{"$nulls":3},"Cuckoo Eggs"]
[{"$nulls":3},"Diamond Encrusted Eggs"]
[{"$nulls":3},"Dragon Eggs"]
[{"$nulls":3},"Fossilised Eggs"]
[{"$nulls":3},"Square Eggs"]
[null,null,"EGG FATES","Donated to museum"]
[{"$nulls":3},"Gave them to girlfriend"]
[{"$nulls":3},"Scoffed the lot"]
[{"$nulls":3},"Sold on eBay"]
[{"$nulls":3},"Tried to hatch them"]
[{"$nulls":3},"Used in recipe"]

{"sheet":"Confession_Reset","index":44,"n_rows":22,"n_cols":26,"rows_kept":22,"hidden":true}
[null,null,"CONFESSION"]
[]
[null,null,9,20,23,1,19,9,",",10,15,5,20,8,5,1,3,20,9,15,14,2,21,14,14,25]
[{"$nulls":8},","]
[]
[null,null,",",23,8,15,19,20,15,12,5,20,8,5,6,15,19,19,9,12,9,19,5,4,5,7]
[null,null,","]
[]
[null,null,7,19,".",13,15,20,8,5,18,14,1,20,21,18,5,18,5,17,21,9,18,5,19,13]
[{"$nulls":4},"."]
[]
[null,null,5,20,15,4,5,12,9,22,5,18,1,14,5,7,7,20,15,14,5,16,20,21,14,5]
[]
[]
[null,null,"-",1,14,4,9,3,1,14,"‘",20,19,3,21,2,1,4,9,22,5,"!",19,15,9,19]
[null,null,"-",{"$nulls":7},"'"]
[]
[null,null,15,12,4,20,8,5,5,7,7,19,15,14,5,2,1,25,20,15,16,1,25,6,15,18]
[]
[]
[null,null,19,15,13,5,12,5,19,19,15,14,19,"."]
[{"$nulls":13},"."]

{"sheet":"PuzzleBonus_Reset","index":45,"n_rows":14,"n_cols":18,"rows_kept":14,"hidden":true}
[null,null,"13 - AUTHOR'S BONUS PUZZLE"]
[]
[null,null,"E","R","U","T","A","N","E","N","D","J","O","R"]
[null,null,"Y","G","I","R","L","F","R","I","E","N","D","E"]
[null,null,"F","Y","E","R","A","U","Q","S","F","D","I","C"]
[null,null,"O","O","R","R","H","U","R","M","F","R","A","I",null,"HANS","CHOCOLATE","EBAY"]
[null,null,"S","N","E","E","R","E","U","A","O","A","M","P",null,"HEZEKIAH","CUCKOO","GIRLFRIEND"]
[null,null,"S","A","H","S","D","E","Z","T","C","G","O","E",null,"JEAN PIERRE","DIAMOND / ENCRUSTED","HATCHED"]
[null,null,"I","T","T","E","S","E","I","E","S","O","N","R",null,"JOE","DRAGON","MUSEUM"]
[null,null,"L","S","O","U","E","J","H","P","K","N","D","S",null,"MILOS","FOSSILISED","RECIPE"]
[null,null,"I","I","M","I","L","O","S","C","N","I","G","N",null,"MOTHER / NATURE","SQUARE","SCOFFED"]
[null,null,"S","R","Y","A","B","E","U","G","T","A","A","A",null,"TRISTAN"]
[null,null,"E","T","A","L","O","C","O","H","C","A","E","H"]
[null,null,"D","E","T","S","U","R","C","N","E","S","H","J"]